fUSD/lending_fUSD_20241024
["ID","MTS","AMOUNT","RATE_DAILY","PERIOD"]
[340781127,1729805256409,200.0,0.000133,4]
[340781128,1729805258517,500.0,0.000134,4]
[340781129,1729805260747,700.0,0.000135,4]
[340781130,1729805264925,1200.0,0.000137,5]
[340781131,1729805267016,200.0,0.000138,5]
[340781132,1729805269100,200.0,0.000139,5]
[340781133,1729805272931,317.40667086,0.00043389,30]
[340781134,1729805290030,716.2761405,0.00013,4]
[340781135,1729805359176,-563.99151339,0.00012164,2]
[340781151,1729805435352,-22.51848661,0.00012164,2]
[340781152,1729805435362,-977.48151339,0.0001305,2]
[340781153,1729805435468,-7358.92427823,0.0001305,2]
[340781154,1729805435479,-500.0,0.0001305,2]
[340781173,1729805437864,-534.02114835,0.0001305,2]
[340781175,1729805437876,-13947.57646003,0.0001305,2]
[340781176,1729805437886,-486.63,0.00013339,2]
[340781177,1729805437896,-1000.0,0.000136,4]
[340781178,1729805437905,-250.0,0.00013847,2]
[340781179,1729805437918,-1197.4419,0.00013895,2]
[340781180,1729805437928,-181.32546634,0.000139,2]
[340781181,1729805437937,-150.0,0.00013999,2]
[340781182,1729805437947,-604606.8120406,0.00014,2]
[340781183,1729805437959,-3742.70217563,0.00014,2]
[340781184,1729805437971,-6904.82972179,0.00014,2]
[340781185,1729805437983,-284.33974681,0.00014,2]
[340781186,1729805437994,-23364.35463442,0.00014,2]
[340781187,1729805438005,-511865.34255531,0.00014,2]
[340781188,1729805438016,-1049.57946802,0.00014,2]
[340781189,1729805438039,-402.53054182,0.00014,2]
[340781190,1729805438051,-1517.50982453,0.00014,2]
[340781191,1729805438063,-280.407,0.00014,2]
[340781192,1729805438074,-6218.1991,0.00014,2]
[340781193,1729805438085,-24279.6150359,0.00014,2]
[340781194,1729805438096,-8377.37472306,0.00014,2]
[340781195,1729805438107,-35571.81491982,0.00014,2]
[340781196,1729805438119,-299.79765415,0.00014,2]
[340781197,1729805438130,-2300.18088363,0.00014,2]
[340781198,1729805438142,-901.71984,0.00014,2]
[340781199,1729805438153,-36865.90328036,0.00014,2]
[340781200,1729805438164,-6821.84844121,0.00014,2]
[340781201,1729805438177,-595.594991,0.00014,2]
[340781202,1729805438226,-2.04206754,0.00014,2]
[340781203,1729805438238,-2024.06082441,0.00014,2]
[340781204,1729805438249,-424.88308538,0.00014,2]
[340781205,1729805438260,-167512.49550379,0.00014,2]
[340781206,1729805438271,-500.56436029,0.00014,2]
[340781207,1729805438282,-3692.56121159,0.00014,2]
[340781208,1729805438294,-315.36888878,0.00014,2]
[340781209,1729805438305,-19127.08279934,0.00014,2]
[340781210,1729805438316,-9476.14118342,0.00014,2]
[340781211,1729805438328,-9321.70015773,0.00014,2]
[340781212,1729805438339,-4758.49524041,0.00014,2]
[340781213,1729805438350,-11749.6801702,0.00014,2]
[340781214,1729805438362,-568.57747522,0.00014,2]
[340781215,1729805438374,-500.0,0.00014,2]
[340781216,1729805438385,-2637.7671035,0.00014,2]
[340781217,1729805438397,-116578.83346171,0.00014,2]
[340781218,1729805438408,-3487.44358524,0.00014,2]
[340781219,1729805438418,-3634.17726568,0.00014,2]
[340781220,1729805438430,-795.2682055,0.00014,2]
[340781221,1729805438441,-1007.38297438,0.00014,2]
[340781222,1729805438456,-683.7273004,0.00014,2]
[340781237,1729805440024,-88746.89330152,0.00014,2]
[340781238,1729805440036,-396.50526993,0.00014,2]
[340781239,1729805440086,-652.75909744,0.00014,2]
[340781241,1729805443040,-8396.71956774,0.00014,2]
[340781243,1729805443052,-7717.454385,0.00014,2]
[340781244,1729805443064,-55480.30923606,0.00014,2]
[340781245,1729805443075,-4130.24694756,0.00014,2]
[340781246,1729805443087,-2037.33,0.00014,2]
[340781247,1729805443107,-1819.99999776,0.00014,2]
[340781248,1729805443118,-588.950825,0.00014,2]
[340781249,1729805443171,-163.085,0.00013999,2]
[340781250,1729805443182,-19707.50664846,0.00014,2]
[340781251,1729805443193,-328.47396994,0.00014,2]
[340781253,1729805443204,-1459.509998,0.00014,2]
[340781254,1729805443215,-505.32356458,0.00014,2]
[340781255,1729805443227,-560.58454009,0.00014,2]
[340781256,1729805443257,-2419.78327386,0.00014,2]
[340781257,1729805443268,-1226.66149548,0.00014,2]
[340781258,1729805443281,-50130.70468253,0.00014,2]
[340781260,1729805443292,-637.34576294,0.00014,2]
[340781263,1729805443304,-93949.24311446,0.00014,2]
[340781265,1729805443316,-302.23,0.00014,2]
[340781266,1729805443328,-300.1,0.00014,2]
[340781267,1729805443339,-307.38558639,0.00014,2]
[340781268,1729805443351,-274.264,0.00014,2]
[340781269,1729805443362,-309.865,0.00014,2]
[340781271,1729805443374,-2057.40136759,0.00014,2]
[340781272,1729805443385,-315.80392118,0.00014,2]
[340781273,1729805443397,-2563.28399046,0.00014,2]
[340781274,1729805443413,-6861.85055786,0.00014,2]
[340781275,1729805443425,-1045.14,0.00014,2]
[340781276,1729805443437,-404120.54133673,0.00014,2]
[340781277,1729805443450,-43417.32454556,0.00014,2]
[340781278,1729805443462,-16586.96867989,0.00014,2]
[340781279,1729805443474,-22424.1537147,0.00014,2]
[340781280,1729805443486,-1763.73999992,0.00014,2]
[340781281,1729805443499,-523.7012728,0.00014,2]
[340781282,1729805443511,-712.45,0.00014,2]
[340781288,1729805443651,-476.04596935,0.00014,2]
[340781289,1729805443670,-260379.58570169,0.00014,2]
[340781301,1729805445908,-411.725524,0.00014,2]
[340781302,1729805445921,-54794.51664563,0.00014,2]
[340781303,1729805446025,-1195.57080635,0.00014,2]
[340781304,1729805446140,-14493.08963662,0.00014,2]
[340781305,1729805446202,-640.89880077,0.00014,2]
[340781307,1729805446533,-57193.9287867,0.00014,2]
[340781309,1729805645235,250.0,0.0001,2]
[340781310,1729805647012,-300.0,0.00012,2]
[340781311,1729805649358,-247.11,0.00013339,2]
[340781312,1729805649380,-954.22,0.00013845,2]
[340781313,1729805649401,-300.0,0.00013898,2]
[340781314,1729805649423,-6344.62472088,0.00013899,2]
[340781315,1729805649443,-249.0,0.00013899,2]
[340781316,1729805649464,-5286.81530737,0.000139,2]
[340781317,1729805649484,-2400.2058978,0.000139,2]
[340781318,1729805649503,-184.96,0.0001399,3]
[340781319,1729805649530,-554.91,0.0001399,3]
[340781320,1729805649558,-45265.1455959,0.0001399,3]
[340781321,1729805649579,-219.79999243,0.00013999,2]
[340781322,1729805649602,-500.0,0.00013999,2]
[340781323,1729805649623,-500.0,0.00013999,2]
[340781324,1729805649644,-258.4045269,0.00013999,2]
[340781325,1729805649667,-5372504.31140715,0.00014,2]
[340781326,1729805649687,-1738.69534209,0.00014,2]
[340781327,1729805649707,-200.0,0.00014,2]
[340781328,1729805649729,-549238.58295775,0.00014,2]
[340781329,1729805649750,-350.0,0.00014,2]
[340781330,1729805660217,4896.698911,0.00013936,2]
[340781331,1729805766626,-10642.88883161,0.000145,3]
[340781332,1729805766653,-200.0,0.000149,5]
[340781333,1729805766679,-369.92,0.0001499,3]
[340781334,1729805779777,-150.0,0.00013993,2]
[340781335,1729805779802,-247.11,0.00014006,2]
[340781336,1729805779824,-250.0,0.00014135,2]
[340781337,1729805779847,-250.0,0.0001424,2]
[340781338,1729805779870,-1094.52299149,0.0001439,2]
[340781339,1729805779894,-586.51,0.00014428,2]
[340781340,1729805779917,-547.55691924,0.000145,2]
[340781341,1729805779940,-247.11,0.00014673,2]
[340781342,1729805779964,-5286.81530732,0.0001478,2]
[340781343,1729805779987,-369.5910817,0.000149,2]
[340781344,1729805780011,-1600.1372652,0.000149,2]
[340781345,1729805780035,-181.49190408,0.000149,2]
[340781346,1729805780059,-162.31945619,0.000149,2]
[340781347,1729805780080,-500.0,0.00014973,2]
[340781348,1729805780102,-390.03348211,0.00014999,2]
[340781349,1729805780125,-220923.99276106,0.00015,2]
[340781350,1729805863100,-527.85,0.00012021,2]
[340781351,1729805863124,-150.0,0.00013989,2]
[340781352,1729805877803,-527.85,0.00014285,2]
[340781353,1729805877822,-250.0,0.00014319,2]
[340781354,1729805877844,-439.98751066,0.000149,2]
[340781355,1729805877866,-246.39405446,0.000149,2]
[340781356,1729805877887,-1066.7581768,0.000149,2]
[340781357,1729805877908,-2791.16025808,0.00015,2]
[340781358,1729805927102,-506.94000004,0.0001499,3]
[340781359,1729806278078,-200.0,0.00024877,30]
[340781365,1729806632047,-303.09206227,0.00013838,2]
[340781366,1729806632059,-150.0,0.00013926,2]
[340781367,1729806632071,-353.50605215,0.00013938,2]
[340781368,1729806632084,-646.49394785,0.00013938,2]
[340781369,1729806632095,-242.65754759,0.00014219,2]
[340781370,1729806632108,-60.43451466,0.00014219,2]
[340781371,1729806632120,-211.52942939,0.000146,2]
[340781372,1729806632134,-91.56263286,0.000146,2]
[340781373,1729806632146,-1640.168,0.000147,2]
[340781374,1729806632157,-169.163,0.000147,2]
[340781375,1729806632169,-2376.14220849,0.000147,2]
[340781376,1729806632182,-541.49640217,0.000147,2]
[340781377,1729806632194,-299.6900001,0.000147,2]
[340781378,1729806632208,-9883.18652425,0.000147,2]
[340781379,1729806632221,-2467.39347575,0.000147,2]
[340781380,1729806632234,-301.45270129,0.000147,2]
[340781381,1729806632248,-752.76793986,0.000147,2]
[340781382,1729806632262,-4896.48829066,0.000147,2]
[340781383,1729806632273,-150.0,0.00014899,2]
[340781384,1729806632456,-367.6812,0.000149,2]
[340781385,1729806632465,-776.26983915,0.000149,2]
[340781386,1729806632478,-670.05965265,0.000149,2]
[340781387,1729806632489,-335.08950845,0.000149,2]
[340781388,1729806632501,-276.52,0.000149,2]
[340781389,1729806632512,-1360.22492769,0.000149,2]
[340781390,1729806632523,-811.28831797,0.000149,2]
[340781391,1729806632533,-711.17211788,0.000149,2]
[340781392,1729806632542,-287.4597302,0.000149,2]
[340781393,1729806632552,-500.0,0.00014973,2]
[340781394,1729806632561,-500.0,0.00014973,2]
[340781395,1729806632571,-500.0,0.00014973,2]
[340781396,1729806632580,-152.23415254,0.0001499,2]
[340781397,1729806632590,-500.0,0.00014999,2]
[340781398,1729806632599,-235.44362028,0.00014999,2]
[340781399,1729806632609,-2905.44201612,0.00015,2]
[340781400,1729806632620,-752.8607206,0.00015,2]
[340781401,1729806632631,-5432.0,0.00015,2]
[340781402,1729806632642,-950.0,0.00015,2]
[340781403,1729806632654,-2034.3771887,0.00015,2]
[340781404,1729806632666,-807.95042268,0.00015,2]
[340781405,1729806632926,-44499.70323651,0.00015,2]
[340781406,1729806632939,-4118.27119374,0.00015,2]
[340781407,1729806632952,-505.89639729,0.00015,2]
[340781408,1729806632965,-5728.33169899,0.00015,2]
[340781409,1729806632977,-432.000004,0.00015,2]
[340781410,1729806632989,-3956.27515077,0.00015,2]
[340781411,1729806633001,-1947.2218158,0.00015,2]
[340781412,1729806633012,-2116.58799259,0.00015,2]
[340781413,1729806633024,-3106.15268631,0.00015,2]
[340781414,1729806633041,-846.08694448,0.00015,2]
[340781415,1729806633054,-702.93574009,0.00015,2]
[340781416,1729806633067,-2056.29,0.00015,2]
[340781431,1729806638127,-45170.54836556,0.00015,2]
[340781432,1729806638140,-1819.82791727,0.00015,2]
[340781433,1729806638152,-21255.32132628,0.00015,2]
[340781434,1729806638164,-36292.7500674,0.00015,2]
[340781435,1729806638175,-476.6,0.00015,2]
[340781436,1729806638187,-299.25,0.00015,2]
[340781437,1729806638199,-24091.17362843,0.00015,2]
[340781438,1729806638256,-2549.4891583,0.00015,2]
[340781439,1729806638268,-274.27572277,0.00015,2]
[340781440,1729806638280,-1821.17721624,0.00015,2]
[340781441,1729806638291,-65185.8294231,0.00015,2]
[340781442,1729806638304,-66541.607581,0.00015,2]
[340781443,1729806638315,-843.02394037,0.00015,2]
[340781444,1729806638326,-896531.52530063,0.00015,2]
[340781445,1729806638337,-609.34684504,0.00015,2]
[340781446,1729806638457,-600.0,0.00015,2]
[340781500,1729806640244,-1076.5033384,0.00015,2]
[340781501,1729806640437,-554.91,0.00015,2]
[340781755,1729806643078,-630.95202878,0.00015,2]
[340781757,1729806643090,-268.02886842,0.00015,2]
[340781766,1729806643174,-638.88960427,0.00015,2]
[340781769,1729806643186,-12054.28764,0.00015,2]
[340781771,1729806643199,-429.40378269,0.00015,2]
[340781773,1729806643210,-1514.90777587,0.00015,2]
[340781782,1729806643292,-1748244.36202712,0.00015,2]
[340781784,1729806643305,-6850.37592001,0.00015,2]
[340781795,1729806643404,-11.5155202,0.00015,2]
[340782037,1729806646024,-355.539,0.00015,2]
[340782039,1729806646035,-88693.16685086,0.00015,2]
[340782042,1729806646047,-2890.33831613,0.00015,2]
[340782057,1729806646116,-164405.0488535,0.00015,2]
[340782060,1729806646128,-2294.94905456,0.00015,2]
[340782076,1729806646207,-95999.99999337,0.00015,2]
[340782208,1729807459752,250.0,0.0001,2]
[340782209,1729807462157,-300.0,0.00012,2]
[340782211,1729807815317,-150.0,0.00012,2]
[340782212,1729807815896,-150.0,0.00012,2]
[340782213,1729807817955,-150.0,0.00012,2]
[340782214,1729807818650,-150.0,0.00012,2]
[340782215,1729807819232,-150.0,0.00012,2]
[340782216,1729807820396,-150.0,0.00012,2]
[340782217,1729807822584,-150.0,0.00012,2]
[340782218,1729807823742,-150.0,0.00012,2]
[340782219,1729807824306,-150.0,0.00012,2]
[340782220,1729807824919,-150.0,0.00012,2]
[340782221,1729807826498,-150.0,0.00012,2]
[340782222,1729807828170,-150.0,0.00012,2]
[340782223,1729807828816,-150.0,0.00012,2]
[340782224,1729807829839,-150.0,0.00012,2]
[340782225,1729807830407,-150.0,0.00012,2]
[340782226,1729807831053,-150.0,0.00012,2]
[340782227,1729807831599,-150.0,0.00012,2]
[340782236,1729807832281,-150.0,0.00012,2]
[340782237,1729807832291,-150.0,0.00012,2]
[340782238,1729807832303,-150.0,0.00012,2]
[340782239,1729807832312,-150.0,0.00012,2]
[340782240,1729807832322,-150.0,0.00012,2]
[340782241,1729807832331,-150.0,0.00012,2]
[340782242,1729807832341,-150.0,0.00012,2]
[340782243,1729807832350,-150.0,0.00012,2]
[340782244,1729807832359,-150.0,0.00012,2]
[340782245,1729807832369,-150.0,0.00012,2]
[340782246,1729807832378,-46.32224169,0.00012,2]
[340782247,1729807832389,-103.67775831,0.00012,2]
[340782248,1729807832398,-150.0,0.00012,2]
[340782249,1729807832407,-150.0,0.00012,2]
[340782250,1729807832417,-150.0,0.00012,2]
[340782251,1729807832426,-150.0,0.00012,2]
[340782252,1729807832435,-150.0,0.00012,2]
[340782253,1729807832445,-150.0,0.00012,2]
[340782254,1729807832454,-221.37906126,0.00012,2]
[340782255,1729807832464,-150.0,0.00013987,2]
[340782256,1729807832474,-350.0,0.00014,2]
[340782257,1729807832483,-58.29575667,0.00014655,2]
[340782258,1729807832494,-365.72845252,0.00014655,2]
[340782259,1729807832504,-818.52040891,0.00014668,2]
[340782260,1729807832517,-848.80884513,0.00014668,2]
[340782261,1729807832529,-1339.45100096,0.00014668,2]
[340782262,1729807832538,-150.0,0.00014899,2]
[340782264,1729807832548,-903.32843613,0.000149,2]
[340782266,1729807832557,-903.32843612,0.000149,2]
[340782268,1729807832566,-191.25007436,0.000149,2]
[340782271,1729807832578,-1279.07982564,0.000149,2]
[340782274,1729807832588,-720.92017436,0.000149,2]
[340782278,1729807832603,-949.93962648,0.000149,2]
[340782280,1729807832621,-3141.8872742,0.000149,2]
[340782282,1729807832632,-21.99069666,0.000149,2]
[340782285,1729807832644,-140.32875953,0.000149,2]
[340782287,1729807832654,-189.22796674,0.00014999,2]
[340782289,1729807832664,-437.83397168,0.00014999,2]
[340782291,1729807832674,-529.3162806,0.00014999,2]
[340782293,1729807832685,-682.12210065,0.00015,2]
[340782295,1729807832697,-401.44091038,0.00015,2]
[340782297,1729807832708,-290.16336359,0.00015,2]
[340782302,1729807838488,-37010.14324801,0.00015,2]
[340782311,1729807840451,-707.12336694,0.00015,2]
[340782312,1729807840463,-13105.87732019,0.00015,2]
[340782313,1729807840475,-5339.53967571,0.00015,2]
[340782314,1729807840559,-750599.33867437,0.00015,2]
[340782315,1729807840573,-1166.31494601,0.00015,2]
[340782330,1729807843569,-1141.17954725,0.00015,2]
[340782331,1729807843580,-683.68,0.00015,2]
[340782332,1729807843596,-4746.3629727,0.00015,2]
[340782333,1729807843608,-4105.33153587,0.00015,2]
[340782334,1729807843672,-2396.27496932,0.00015,2]
[340782481,1729807846478,-1138.28203649,0.00015,2]
[340782483,1729808719794,150.0,9e-05,2]
[340782484,1729808719816,150.0,9e-05,2]
[340782485,1729808719838,150.0,9e-05,2]
[340782486,1729808719860,150.0,9e-05,2]
[340782487,1729808719882,150.0,9e-05,2]
[340782488,1729808719907,150.0,9e-05,2]
[340782489,1729808719930,150.0,9e-05,2]
[340782490,1729808719953,150.0,9e-05,2]
[340782491,1729808719975,150.0,9e-05,2]
[340782492,1729808720001,800.0,9e-05,2]
[340782493,1729808720021,800.0,9e-05,2]
[340782494,1729808720041,745.6413237,9e-05,2]
[340782495,1729808729669,54.3586763,0.000101,2]
[340782496,1729808729690,800.0,0.000101,2]
[340782497,1729808729710,800.0,0.000101,2]
[340782498,1729808729732,800.0,0.000101,2]
[340782499,1729808729753,800.0,0.000101,2]
[340782500,1729808729774,800.0,0.000101,2]
[340782501,1729808729795,800.0,0.000101,2]
[340782502,1729808729815,800.0,0.000101,2]
[340782503,1729808729835,800.0,0.000101,2]
[340782504,1729808729855,800.0,0.000101,2]
[340782505,1729808729901,15333.26117013,0.000101,2]
[340782506,1729808736397,19750.0,9e-05,2]
[340782507,1729808755517,297.87044918,6.94e-05,2]
[340782508,1729808762766,161.46924233,9e-05,2]
[340782513,1729808838354,205.0,9.8e-05,2]
[340782514,1729808842446,246.56093736,0.000101,2]
[340782515,1729808878278,6522.8835981,0.0001,2]
[340782516,1729808915771,212.34561259,0.0001,2]
[340782531,1729809031424,-1000.0,0.000139,2]
[340782532,1729809031434,-2500.0,0.000139,2]
[340782533,1729809031443,-176.11698715,0.00013927,2]
[340782534,1729809031453,-150.0,0.00013975,2]
[340782535,1729809031462,-169.60500023,0.0001399,2]
[340782536,1729809031471,-562.17706651,0.00013999,2]
[340782537,1729809031480,-300.0,0.00013999,2]
[340782538,1729809031490,-12103.69960953,0.00014,2]
[340782539,1729809031501,-7472.38296907,0.00014,2]
[340782540,1729809031512,-1916.07968143,0.00014,2]
[340782541,1729809031523,-2232.34653348,0.00014,2]
[340782542,1729809031534,-460.19652237,0.00014,2]
[340782543,1729809031549,-16986.79215648,0.00014,2]
[340782544,1729809031560,-389.84087267,0.00014,2]
[340782545,1729809031571,-4207.88817068,0.00014,2]
[340782546,1729809031615,-2082.5403527,0.00014,2]
[340782547,1729809031626,-1601.38575,0.00014,2]
[340782548,1729809031637,-13131.15499878,0.00014,2]
[340782549,1729809031649,-337.01913656,0.00014,2]
[340782574,1729809037540,-14976.47008776,0.00014,2]
[340782575,1729809037552,-536.193945,0.00014,2]
[340782576,1729809037624,-526.95999998,0.00014,2]
[340782577,1729809037707,-405042.72029187,0.00014,2]
[340782584,1729809039574,-1446.67614867,0.00014,2]
[340782585,1729809039591,-684.805,0.00014,2]
[340782586,1729809039676,-824.14377842,0.00014,2]
[340782694,1729809042477,-959.49357386,0.00014,2]
[340782695,1729809042489,-4169.92515056,0.00014,2]
[340782698,1729809045452,-500.0,0.00013973,2]
[340782699,1729809045462,-188.413945,0.00014,2]
[340782701,1729809273277,250.0,0.0001,2]
[340782705,1729809839568,1007.11906751,0.00043051,30]
[340782754,1729810139980,534.32,0.00011018,2]
[340782755,1729810158088,-150.0,0.00011989,2]
[340782756,1729810158108,-173.89275362,0.00012,2]
[340782763,1729810231692,-126.10724638,0.00012,2]
[340782764,1729810231702,-150.0,0.00012,2]
[340782765,1729810231718,-250.0,0.00012957,2]
[340782766,1729810231727,-534.32,0.00013282,2]
[340782767,1729810231737,-1310.6805,0.0001379,2]
[340782768,1729810231746,-1075.809,0.0001379,2]
[340782769,1729810231759,-409.67325882,0.00013791,2]
[340782770,1729810231770,-1636.08434118,0.00013791,2]
[340782771,1729810231780,-7463.77131759,0.00013794,2]
[340782772,1729810231792,-500.0,0.00013873,2]
[340782773,1729810231803,-500.0,0.00013873,2]
[340782774,1729810231813,-500.0,0.00013873,2]
[340782775,1729810231823,-150.0,0.00013889,2]
[340782776,1729810231835,-222.1257,0.0001389,2]
[340782777,1729810231845,-23893.7227,0.0001389,2]
[340782778,1729810231857,-3296.1575,0.0001389,2]
[340782779,1729810231866,-100000.0,0.0001389,2]
[340782780,1729810231875,-23900.0,0.00013891,2]
[340782781,1729810231884,-354.76,0.00013891,2]
[340782782,1729810231893,-3746.26,0.00013891,2]
[340782783,1729810231903,-1737.38,0.00013894,2]
[340782784,1729810231914,-1000.0,0.00013894,2]
[340782785,1729810231923,-1737.38,0.00013898,2]
[340782786,1729810231933,-954.3416,0.000139,2]
[340782787,1729810231942,-1000.0,0.000139,2]
[340782788,1729810231951,-890.374,0.000139,2]
[340782789,1729810231961,-158.13425187,0.000139,2]
[340782790,1729810231970,-191.63982014,0.000139,2]
[340782791,1729810231979,-167.912077,0.000139,2]
[340782792,1729810231989,-474.11474524,0.000139,2]
[340782793,1729810231998,-1737.38,0.00013901,2]
[340782794,1729810232007,-1737.38,0.00013905,2]
[340782795,1729810232016,-1737.38,0.00013909,2]
[340782796,1729810232025,-1737.38,0.00013912,2]
[340782797,1729810232034,-1737.38,0.00013916,2]
[340782798,1729810232044,-1737.38,0.0001392,2]
[340782799,1729810232054,-1737.38,0.00013923,2]
[340782800,1729810232064,-1737.38,0.00013927,2]
[340782801,1729810232073,-1737.38,0.00013931,2]
[340782802,1729810232083,-1737.38,0.00013934,2]
[340782803,1729810232093,-1737.38,0.00013938,2]
[340782804,1729810232102,-1737.38,0.00013942,2]
[340782805,1729810232111,-1737.38,0.00013945,2]
[340782806,1729810232120,-1737.38,0.00013949,2]
[340782807,1729810232130,-1737.38,0.00013953,2]
[340782808,1729810232139,-1737.38,0.00013956,2]
[340782809,1729810232148,-1737.38,0.0001396,2]
[340782810,1729810232157,-1737.38,0.00013963,2]
[340782811,1729810232167,-500.0,0.00013973,2]
[340782812,1729810232176,-503.27156396,0.00013973,2]
[340782813,1729810232186,-500.66472637,0.00013973,2]
[340782814,1729810232195,-160.37964648,0.00013973,2]
[340782815,1729810232204,-202511.831878,0.0001399,3]
[340782816,1729810232214,-169.60500023,0.0001399,2]
[340782817,1729810232223,-17163.6850967,0.00014,2]
[340782818,1729810232235,-11576.25247976,0.00014,2]
[340782819,1729810232246,-1372.23065705,0.00014,2]
[340782820,1729810232257,-277.5783648,0.00014,2]
[340782821,1729810232268,-5276.30334371,0.00014,2]
[340782863,1729810237665,-160.11855563,0.00013973,2]
[340782864,1729810237675,-61876.42604417,0.00014,2]
[340782865,1729810237687,-509.16789362,0.00014,2]
[340782867,1729810237698,-618.74932003,0.00014,2]
[340782868,1729810237712,-12835.94490833,0.00014,2]
[340782869,1729810237725,-1080.68345125,0.00014,2]
[340782870,1729810237796,-67717.96850582,0.00014,2]
[340782871,1729810237808,-2033.1063576,0.00014,2]
[340782872,1729810237821,-1000.40156456,0.00014,2]
[340782873,1729810237832,-1019.83248483,0.00014,2]
[340782874,1729810237844,-55332.60260614,0.00014,2]
[340782875,1729810237855,-2043.19999995,0.00014,2]
[340782876,1729810237866,-88859.86473479,0.00014,2]
[340782877,1729810237877,-307052.12172122,0.00014,2]
[340782878,1729810237888,-8208.53520196,0.00014,2]
[340782879,1729810237899,-762.66851163,0.00014,2]
[340782880,1729810237916,-6214.73959699,0.00014,2]
[340782881,1729810239676,-1227.9599996,0.00014,2]
[340782882,1729810239688,-400.075,0.00014,2]
[340782883,1729810239701,-682.96000001,0.00014,2]
[340782884,1729810239715,-21826.22156443,0.00014,2]
[340782885,1729810239729,-143362.76835172,0.00014,2]
[340782886,1729810239741,-1378.87335748,0.00014,2]
[340782887,1729810239751,-3073.72889359,0.00014,2]
[340782888,1729810239764,-476.45777715,0.00014,2]
[340782889,1729810239776,-11809.42168032,0.00014,2]
[340782890,1729810239789,-3436.19398031,0.00014,2]
[340782891,1729810239801,-1095.51901377,0.00014,2]
[340782892,1729810239813,-478.75263346,0.00014,2]
[340782893,1729810239827,-701.66503495,0.00014,2]
[340782894,1729810239839,-1787.55805162,0.00014,2]
[340782895,1729810239850,-413.29605987,0.00014,2]
[340782896,1729810239862,-1663.5002,0.00014,2]
[340782897,1729810239874,-1918.26457897,0.00014,2]
[340782898,1729810239885,-6823.92594344,0.00014,2]
[340782899,1729810239896,-722.19529931,0.00014,2]
[340782900,1729810239907,-677.01,0.00014,2]
[340782901,1729810239919,-379.485462,0.00014,2]
[340782902,1729810239931,-10682.73555237,0.00014,2]
[340782903,1729810239942,-154035.69697804,0.00014,2]
[340782904,1729810239954,-602.7973578,0.00014,2]
[340782905,1729810239965,-616.89321857,0.00014,2]
[340782906,1729810239976,-304.33735203,0.00014,2]
[340782907,1729810239987,-367.73014028,0.00014,2]
[340782909,1729810239998,-621.51461131,0.00014,2]
[340782911,1729810240009,-6896.22910835,0.00014,2]
[340782913,1729810240021,-83348.20398924,0.00014,2]
[340782915,1729810240032,-844.46840723,0.00014,2]
[340782917,1729810240045,-13471.89695095,0.00014,2]
[340782920,1729810240057,-1986.34492326,0.00014,2]
[340782922,1729810240068,-851.77106828,0.00014,2]
[340783162,1729810242610,-2404.637328,0.00014,2]
[340783180,1729810242739,-975.98253754,0.00014,2]
[340783182,1729810242750,-3903.1014258,0.00014,2]
[340783192,1729810242865,-17916.75300949,0.00014,2]
[340783215,1729810245997,-677.21,0.00014,2]
[340783237,1729810287107,-150.0,0.00012,2]
[340783238,1729810287132,-332.88257164,0.000139,2]
[340783239,1729810287155,-424.38888601,0.00013973,2]